[Event "Vojvodina Open 2024-A 2024"]
[Site "Novi Sad"]
[Date "2024.06.29"]
[Round "7.6"]
[White "Masic, Predrag"]
[Black "Bryakin, Mikhail"]
[Result "1/2-1/2"]
[ECO "A37"]
[WhiteElo "2176"]
[BlackElo "2469"]
[Annotator "TA"]
[PlyCount "122"]
[EventDate "2024.06.03"]
[EventType "swiss"]
[EventCountry "SRB"]
[SourceTitle "playchess.com"]
[Source "ChessBase"]
[SourceQuality "1"]
[TimeControl "40/5400+30:900+30"]

{[%evp 48,122,216,230,229,189,222,227,260,173,260,198,219,183,220,80,77,100,103,89,86,101,98,0,0,0,0,-176,132,143,143,-200,-207,-698,50,-30,50,51,51,51,180,69,205,55,330,56,185,56,213,206,1273,396,462,456,453,323,763,59,59,33,741,724,599,152,172,163,187,0,0,0,0,0,0,0,0,0,0]} 1. e4 {[%emt 0:00:30]} c5 {[%emt 0:11:33]} 2. Nf3 {[%emt 0:00:00]} g6 {[%emt 0:00:08]} 3. g3 {[%emt 0:02:34]} Bg7 {[%emt 0:00:24]} 4. Bg2 {[%emt 0:00:12]} Nc6 {[%emt 0:00:07]} 5. O-O {[%emt 0:00:18]} e5 {[%emt 0:00:26]} 6. d3 {[%emt 0:01:04]} Nge7 {[%emt 0:00:21]} 7. c4 {[%emt 0:03:49]} d6 {[%emt 0:00:37]} 8. Nc3 {[%emt 0:00:13]} O-O {[%emt 0:00:21]} 9. a3 {[%emt 0:00:38]} f5 {[%emt 0:00:44] A37: Symmetrical English vs ...g6: 4 Bg2 Bg7 5 Nf3.} 10. exf5 {[%emt 0:01:44]} Bxf5 {[%emt 0:03:52]} 11. Ng5 {[%emt 0:04:05]} h6 $146 {[%emt 0:01:47]} ({Predecessor:} 11... Qd7 12. Be3 Rad8 13. Qd2 b6 14. Rae1 h6 15. Nge4 Kh7 16. f4 Bh3 17. Nd5 Bxg2 18. Qxg2 Nxd5 19. cxd5 {0-1 Werner,H (2124)-Harshavardhan,G (2433) Teplice op 17th 2024 (4)}) 12. Nge4 {[%emt 0:00:16]} a6 {[%emt 0:02:04]} 13. Rb1 {[%emt 0:01:30]} Qd7 {[%emt 0:15:19]} 14. b4 {[%emt 0:01:54]} cxb4 {[%emt 0:00:17]} 15. axb4 {[%emt 0:00:09]} Bh3 {[%emt 0:00:08]} 16. Be3 {[%emt 0:11:11]} Bxg2 {[%emt 0:05:30]} 17. Kxg2 {[%emt 0:00:10]} b5 {[%emt 0:00:21]} 18. Qb3 {[%emt 0:12:06]} bxc4 {[%emt 0:03:10]} 19. dxc4 {[%emt 0:00:48]} Nd4 {[%emt 0:00:08]} 20. Bxd4 {[%emt 0:05:13]} exd4 {[%emt 0:00:06]} 21. c5+ {[%emt 0:02:19]} d5 {[%emt 0:04:37]} 22. Na4 {[%emt 0:02:23]} Rab8 {[%emt 0:04:40]} 23. Nb6 {[%emt 0:01:58]} Qc6 {[%emt 0:00:50]} 24. Rbe1 {[%emt 0:05:42]} Kh7 {[%emt 0:15:43]} 25. Ng5+ {[%emt 0:04:58]} hxg5 {[%emt 0:00:06]} 26. Rxe7 {[%emt 0:00:04]} Rf5 {[%emt 0:00:46]} 27. Qd3 {[%emt 0:08:42]} (27. Nd7 Rd8 28. Nb6 (28. g4 Rf4 $15) 28... a5 $16) 27... Qf6 {[%emt 0:14:22]} 28. Re2 {[%emt 0:03:23]} Rb7 {[%emt 0:03:36]} (28... Qf7 $142 29. f3 (29. Qxa6 Rf3 $16) 29... Re8) 29. Qxa6 {[%emt 0:10:02]} Rf7 {[%emt 0:00:12]} 30. Qb5 {[%emt 0:03:20]} g4 {[%emt 0:00:35]} 31. Nd7 {[%emt 0:00:53]} (31. Kg1 $1 $18) 31... Qg5 $16 {[%emt 0:01:40]} 32. c6 {[%emt 0:01:03]} Rf3 {[%emt 0:01:39]} 33. c7 $1 {[%emt 0:03:38]} Rc3 {[%emt 0:00:29]} 34. Nc5 {[%emt 0:00:49]} Qf5 {[%emt 0:00:57]} 35. Ne6 {[%emt 0:09:33]} (35. Qb8 $16 Rxc7 36. Qxc7 Qf3+ 37. Kg1 Qxe2 38. Qf7) 35... d3 $11 {[%emt 0:01:42]} 36. Re3 {[%emt 0:00:04]} Bh6 $1 {[%emt 0:08:22]} 37. Nd4 $2 {[%emt 0:00:08]} (37. f4 $11 gxf3+ 38. Rexf3 Rc2+ 39. Kh1 (39. Kg1 $2 Be3+ 40. Kh1 Qe4 $19)) 37... Qf6 $2 {[%emt 0:00:37]} ({Black should try} 37... Qh5 $1 $19 38. Ree1 (38. Rxd3 $2 Rxf2+ 39. Rxf2 Qh3+ 40. Kg1 Rc1+ $19) 38... Rfxc7) 38. Rxd3 $16 {[%emt 0:00:07]} (38. Qxd5 $2 Bxe3 $19) 38... Rcxc7 {[%emt 0:00:16]} 39. Kg1 $2 {[%emt 0:01:51][%mdl 8192]} (39. Qxd5 $16 {and life is bright. b5 would now be deadly.} Rfe7 40. Nb5) 39... Rc1 $19 {[%emt 0:00:22]} 40. f4 $2 {[%emt 0:00:00]} (40. Qxd5 $2 Rxf1+ 41. Kxf1 Qxf2#) (40. Nf3 Rxf1+ (40... gxf3 41. Rxc1 Bxc1 42. Qxd5 $17) 41. Kxf1) 40... gxf3 $2 {[%emt 0:00:00]} (40... Bxf4 $19 41. Rxc1 (41. gxf4 $2 Rxf1+ 42. Kxf1 Qxf4+ $19) 41... Bxc1) 41. Nxf3 {[%emt 0:04:50]} (41. Qxd5 $14 f2+ 42. Kg2 Rxf1 43. Kxf1) 41... Rfc7 {[%emt 0:11:50]} (41... Rxf1+ $11 42. Kxf1 Qe6) 42. Qxd5 $14 {[%emt 0:01:26]} Qb2 {[%emt 0:03:11]} 43. Rxc1 {[%emt 0:06:07]} Qxc1+ {[%emt 0:00:09]} (43... Rxc1+ $14 44. Rd1 Rxd1+ 45. Qxd1 Qxb4) 44. Kg2 {[%emt 0:01:14]} (44. Rd1 $18 Qc3 45. Qe5 Qe3+ 46. Kg2 (46. Qxe3 Bxe3+ 47. Kg2 Rc2+ 48. Kh3 Bh6 $18) 46... Rc2+ 47. Kh3 Qxe5 (47... Qxf3 $2 48. Rd7+ Kg8 49. Qe8+ Qf8 50. Qxg6+ Bg7 51. Qxc2 $18) 48. Nxe5) 44... Re7 {[%emt 0:00:20]} (44... Qb2+ $14 45. Kh3 Qxb4) 45. Qa2 {[%emt 0:03:08]} (45. Rd4 $18) 45... Be3 $2 {[%emt 0:00:40][%mdl 8192]} (45... Rc7 $1 $14 46. Qd5 Qb2+ 47. Kh3 Qxb4) 46. Qe2 $2 {[%emt 0:00:40]} ({White should play} 46. Rd8 $18 Qc3 47. h4 (47. Qg8+ Kh6 $16)) 46... Qc4 {[%emt 0:00:48]} (46... Bc5 $1 $14 47. Qa2 Bxb4) 47. Qd1 {[%emt 0:00:22]} (47. h4 $1 $18) 47... Kh6 $2 {[%emt 0:00:29]} ({Better is} 47... Qxb4 $14 48. h4 Qe4) 48. Qb3 {[%emt 0:00:38]} Qc1 $2 {[%emt 0:00:08]} (48... Qxb3 49. Rxb3 Re4) 49. Rd1 $2 {[%emt 0:00:21]} (49. Rc3) 49... Qc6 {[%emt 0:00:26]} 50. b5 {[%emt 0:00:29]} Qb6 {[%emt 0:01:06]} 51. Qd5 {[%emt 0:00:21]} Bc5 $2 {[%emt 0:00:02]} (51... Qc5 52. Qd3 Kh7) 52. Rd2 $2 {[%emt 0:01:13]} (52. Rc1 $18) 52... Qxb5 $14 {[%emt 0:00:50]} 53. Rc2 {[%emt 0:00:23]} Rc7 $2 {[%emt 0:01:08][%mdl 8192]} (53... Re2+ $14 54. Rxe2 Qxe2+ 55. Kh3 Be7) 54. Qg5+ $18 {[%emt 0:00:14]} Kh7 {[%emt 0:00:06] [#]} 55. Ne5 $2 {[%emt 0:00:52]} (55. Qe5 $1 $18 {[%cal Re5c7] is the precise move to win.} Qc6 56. Rxc5 Qxc5 57. Ng5+ Kh6 58. Nf7+ Rxf7 59. Qxc5) 55... Qb7+ {[%emt 0:00:26]} 56. Kh3 {[%emt 0:00:13]} Qb6 {[%emt 0:00:58] [#]} 57. Rxc5 $2 {[%emt 0:01:12]} (57. Ng4 $1 $18 {[%mdl 512] aiming for Nf6+.} Kg8 58. Qd5+ Kf8 59. Rd2) 57... Qxc5 $11 {[%emt 0:01:24]} (57... Rxc5 $2 {too greedy.} 58. Qe7+ Kh8 59. Qf8+ (59. Nxg6+ Kg8 $11) 59... Kh7 60. Qf7+ Kh8 61. Nxg6+ $18) 58. Qxg6+ {[%emt 0:00:08]} Kh8 {[%emt 0:01:35]} 59. Nf7+ {[%emt 0:00:11]} Rxf7 {[%emt 0:00:00]} 60. Qxf7 {[%emt 0:00:02]} Qc8+ $1 {[%emt 0:00:00]} 61. Kh4 {[%emt 0:00:51]} Qg4+ {[%emt 0:01:30]} 1/2-1/2

[Event "Vojvodina Open 2024-A 2024"]
[Site "Novi Sad"]
[Date "2024.06.29"]
[Round "7.7"]
[White "Ivanov, Mikhail M"]
[Black "Gur, Ali"]
[Result "1-0"]
[ECO "E11"]
[WhiteElo "2248"]
[BlackElo "1968"]
[Annotator "RC"]
[PlyCount "123"]
[EventDate "2024.06.03"]
[EventType "swiss"]
[EventCountry "SRB"]
[SourceTitle "playchess.com"]
[Source "ChessBase"]
[SourceQuality "1"]
[TimeControl "40/5400+30:900+30"]

1. d4 {[%emt 0:10:16]} Nf6 {[%emt 0:00:08]} 2. c4 {[%emt 0:00:26]} e6 {[%emt 0:00:07]} 3. g3 {[%emt 0:00:03]} Bb4+ {[%emt 0:00:41]} 4. Bd2 {[%emt 0:00:19]} Bxd2+ {[%emt 0:00:43]} 5. Qxd2 {[%emt 0:00:14]} O-O {[%emt 0:00:11]} 6. Bg2 {[%emt 0:01:26]} d6 {[%emt 0:00:10]} 7. Nc3 {[%emt 0:00:19]} Nbd7 {[%emt 0:00:24]} 8. Nf3 {[%emt 0:11:02]} Qe7 {[%emt 0:00:57]} 9. O-O {[%emt 0:00:24]} e5 {[%emt 0:00:14]} 10. e4 {[%emt 0:00:12]} Nb6 {[%emt 0:02:53]} 11. b3 {[%emt 0:06:10]} Bg4 {[%emt 0:00:32]} 12. Nh4 {[%emt 0:01:11]} exd4 {[%emt 0:03:46]} 13. Qxd4 {[%emt 0:01:04]} Qd7 {[%emt 0:06:54]} 14. Rfe1 {[%emt 0:01:22]} Bh3 {[%emt 0:00:56]} 15. Bh1 {[%emt 0:01:11]} Be6 {[%emt 0:08:31]} 16. Rad1 {[%emt 0:05:50]} Rad8 {[%emt 0:01:00]} 17. c5 {[%emt 0:02:52]} dxc5 {[%emt 0:00:36]} 18. Qxc5 {[%emt 0:00:06]} Qc6 {[%emt 0:00:45]} 19. Qxc6 {[%emt 0:02:14]} bxc6 {[%emt 0:00:03]} 20. Nf3 {[%emt 0:12:41]} c5 {[%emt 0:01:38]} 21. Ne5 {[%emt 0:00:38]} c4 {[%emt 0:03:45]} 22. b4 {[%emt 0:00:58]} Ng4 {[%emt 0:00:46]} 23. Nc6 {[%emt 0:02:25]} Rd3 {[%emt 0:01:00]} 24. Rxd3 {[%emt 0:01:20]} cxd3 {[%emt 0:00:02]} 25. Rd1 {[%emt 0:01:23]} Bc4 {[%emt 0:01:57]} 26. h3 {[%emt 0:04:35]} Nh6 {[%emt 0:02:15]} 27. Bg2 {[%emt 0:02:37]} Re8 {[%emt 0:06:18]} 28. Bf1 {[%emt 0:04:47]} f5 {[%emt 0:02:43]} 29. e5 {[%emt 0:03:16]} Re6 {[%emt 0:00:13]} 30. Nxa7 {[%emt 0:02:41]} Rxe5 {[%emt 0:01:29]} 31. Bxd3 {[%emt 0:00:45]} Bxd3 {[%emt 0:00:39]} 32. Rxd3 {[%emt 0:00:06]} f4 {[%emt 0:00:13]} 33. gxf4 {[%emt 0:04:03]} Re1+ {[%emt 0:00:36]} 34. Kh2 {[%emt 0:00:04]} Nf5 {[%emt 0:00:20]} 35. Rd1 {[%emt 0:00:15]} Rxd1 {[%emt 0:00:46]} 36. Nxd1 {[%emt 0:00:04]} Nd5 {[%emt 0:00:06]} 37. Nc6 {[%emt 0:00:31]} Kf7 {[%emt 0:01:49]} 38. Ne3 {[%emt 0:11:12]} Nfxe3 {[%emt 0:00:44]} 39. fxe3 {[%emt 0:00:04]} Ke8 {[%emt 0:00:37]} 40. e4 {[%emt 0:00:00]} Nc3 {[%emt 0:00:00]} 41. a3 {[%emt 0:14:19]} Nxe4 {[%emt 0:00:48]} 42. Kg2 {[%emt 0:00:31]} Kd7 {[%emt 0:00:45]} 43. Nd4 {[%emt 0:00:24]} g6 {[%emt 0:08:44]} 44. Kf3 {[%emt 0:03:40]} Nf6 {[%emt 0:00:48]} 45. a4 {[%emt 0:00:46]} c6 {[%emt 0:02:55]} 46. a5 {[%emt 0:01:00]} Nd5 {[%emt 0:00:29]} 47. a6 {[%emt 0:00:47]} Kc7 {[%emt 0:01:01]} 48. a7 {[%emt 0:00:15]} Nb6 {[%emt 0:00:47]} 49. Ne6+ {[%emt 0:00:41]} Kb7 {[%emt 0:00:28]} 50. Nf8 {[%emt 0:00:39]} Kxa7 {[%emt 0:01:08]} 51. Nxh7 {[%emt 0:00:03]} Nd5 {[%emt 0:01:10]} 52. Nf8 {[%emt 0:00:11]} Nxb4 {[%emt 0:01:11]} 53. Nxg6 {[%emt 0:00:05]} Nd5 {[%emt 0:01:31]} 54. h4 {[%emt 0:01:11]} Nf6 {[%emt 0:00:20]} 55. f5 {[%emt 0:00:16]} c5 {[%emt 0:00:15]} 56. Ne5 {[%emt 0:00:09]} Kb7 {[%emt 0:00:40]} 57. Kf4 {[%emt 0:00:13]} Kc7 {[%emt 0:00:25]} 58. Kg5 {[%emt 0:00:14]} Nh7+ {[%emt 0:02:52]} 59. Kg6 {[%emt 0:00:45]} Nf8+ {[%emt 0:00:49]} 60. Kg7 {[%emt 0:00:17]} Kd6 {[%emt 0:00:40]} 61. Nc4+ {[%emt 0:00:35]} Kd5 {[%emt 0:00:49]} 62. Kxf8 {[%emt 0:08:23]} 1-0

[Event "Vojvodina Open 2024-A 2024"]
[Site "Novi Sad"]
[Date "2024.06.29"]
[Round "7.8"]
[White "Pranav K P"]
[Black "Leskur, Dejan"]
[Result "1-0"]
[ECO "E91"]
[WhiteElo "2223"]
[BlackElo "2227"]
[Annotator "RC"]
[PlyCount "90"]
[EventDate "2024.06.03"]
[EventType "swiss"]
[EventCountry "SRB"]
[SourceTitle "playchess.com"]
[Source "ChessBase"]
[SourceQuality "1"]
[TimeControl "40/5400+30:900+30"]

1. d4 {[%emt 0:00:19]} Nf6 {[%emt 0:00:06]} 2. c4 {[%emt 0:00:05]} c5 {[%emt 0:00:04]} 3. d5 {[%emt 0:00:06]} g6 {[%emt 0:00:07]} 4. Nc3 {[%emt 0:00:32]} Bg7 {[%emt 0:00:06]} 5. e4 {[%emt 0:00:44]} d6 {[%emt 0:00:07]} 6. Be2 {[%emt 0:01:28]} O-O {[%emt 0:00:10]} 7. Nf3 {[%emt 0:00:30]} e6 {[%emt 0:01:08]} 8. O-O {[%emt 0:00:36]} Re8 {[%emt 0:01:45]} 9. h3 {[%emt 0:01:13]} Na6 {[%emt 0:08:54]} 10. a3 {[%emt 0:04:26]} Nc7 {[%emt 0:09:12]} 11. Rb1 {[%emt 0:01:07]} exd5 {[%emt 0:01:00]} 12. exd5 {[%emt 0:00:19]} Bf5 {[%emt 0:00:12]} 13. Bd3 {[%emt 0:00:25]} Bxd3 {[%emt 0:08:13]} 14. Qxd3 {[%emt 0:00:03]} a5 {[%emt 0:00:28]} 15. Bf4 {[%emt 0:08:57]} Qd7 {[%emt 0:01:24]} 16. Rfe1 {[%emt 0:02:31]} Rxe1+ {[%emt 0:04:52]} 17. Rxe1 {[%emt 0:00:02]} Re8 {[%emt 0:00:09]} 18. Rxe8+ {[%emt 0:01:09]} Nfxe8 {[%emt 0:00:20]} 19. b3 {[%emt 0:02:21]} b6 {[%emt 0:20:06]} 20. Na4 {[%emt 0:03:25]} Na8 {[%emt 0:00:07]} 21. Nd2 {[%emt 0:06:45]} Bd4 {[%emt 0:03:56]} 22. Nf3 {[%emt 0:06:41]} Bg7 {[%emt 0:00:13]} 23. Nd2 {[%emt 0:08:48]} Bd4 {[%emt 0:00:21]} 24. Qe2 {[%emt 0:05:17]} Bg7 {[%emt 0:18:49]} 25. Ne4 {[%emt 0:10:08]} Qe7 {[%emt 0:01:09]} 26. Kf1 {[%emt 0:03:33]} Kf8 {[%emt 0:04:32]} 27. g4 {[%emt 0:01:37]} Qd7 {[%emt 0:02:27]} 28. f3 {[%emt 0:05:52]} Kg8 {[%emt 0:02:06]} 29. Ke1 {[%emt 0:03:08]} Bf8 {[%emt 0:01:51]} 30. Kd1 {[%emt 0:02:06]} Qe7 {[%emt 0:01:15]} 31. Bg5 {[%emt 0:01:17]} Qd7 {[%emt 0:00:35]} 32. Nf6+ {[%emt 0:03:04]} Nxf6 {[%emt 0:00:08]} 33. Bxf6 {[%emt 0:00:02]} Qc8 {[%emt 0:02:59]} 34. f4 {[%emt 0:04:17]} Qb8 {[%emt 0:03:08]} 35. Ba1 {[%emt 0:03:34]} Bg7 {[%emt 0:00:17]} 36. Bxg7 {[%emt 0:00:25]} Kxg7 {[%emt 0:00:01]} 37. Nc3 {[%emt 0:03:15]} Qd8 {[%emt 0:01:25]} 38. Ne4 {[%emt 0:01:54]} Nc7 {[%emt 0:00:13]} 39. a4 {[%emt 0:02:28]} Ne8 {[%emt 0:00:23]} 40. Qb2+ {[%emt 0:00:00]} f6 {[%emt 0:00:00]} 41. Ng5 {[%emt 0:01:30]} Nc7 {[%emt 0:00:51]} 42. Ne6+ {[%emt 0:00:21]} Nxe6 {[%emt 0:00:02]} 43. dxe6 {[%emt 0:00:02]} d5 {[%emt 0:00:11]} 44. Qd2 {[%emt 0:00:07]} d4 {[%emt 0:00:25]} 45. Qg2 {[%emt 0:01:11]} f5 {[%emt 0:11:30]} 1-0

[Event "Vojvodina Open 2024-A 2024"]
[Site "Novi Sad"]
[Date "2024.06.29"]
[Round "7.9"]
[White "Kalinin, Alexander"]
[Black "Pranav Pradeep Nair"]
[Result "1-0"]
[ECO "B38"]
[WhiteElo "2459"]
[BlackElo "1818"]
[Annotator "TA"]
[PlyCount "107"]
[EventDate "2024.06.03"]
[EventType "swiss"]
[EventCountry "SRB"]
[SourceTitle "playchess.com"]
[Source "ChessBase"]
[SourceQuality "1"]
[TimeControl "40/5400+30:900+30"]

{[%evp 18,107,51,43,50,12,22,22,54,54,142,91,74,55,56,26,34,43,41,38,71,77,75,71,65,76,67,58,100,67,133,130,131,132,121,126,145,143,165,162,172,163,339,339,328,342,332,310,322,323,400,395,365,283,288,273,270,270,271,242,260,266,272,262,265,121,157,152,154,161,170,141,285,280,301,315,263,137,412,405,399,389,458,448,614,589,29976,29976,29986,29986,29986,29987]} 1. Nf3 {[%emt 0:01:38]} c5 {[%emt 0:00:06]} 2. c4 {[%emt 0:00:11]} g6 {[%emt 0:00:08]} 3. d4 {[%emt 0:01:43]} cxd4 {[%emt 0:00:55]} 4. Nxd4 {[%emt 0:00:07]} Nf6 {[%emt 0:00:15]} 5. Nc3 {[%emt 0:00:58]} Bg7 {[%emt 0:00:12]} 6. e4 {[%emt 0:00:24]} d6 {[%emt 0:00:38]} 7. Be2 {[%emt 0:00:25]} O-O {[%emt 0:00:33]} 8. O-O {[%emt 0:00:08]} Nc6 {[%emt 0:00:05]} 9. Be3 {[%emt 0:00:23]} Bd7 {[%emt 0:00:05]} 10. Nc2 {[%emt 0:04:24]} Be6 {[%emt 0:10:00]} 11. f3 {[%emt 0:07:08]} Nd7 {[%emt 0:04:05]} 12. Qd2 {[%emt 0:00:09]} a5 {[%emt 0:06:17] The position is equal.} 13. Na3 {[%emt 0:03:17]} Nb6 {[%emt 0:09:09]} ({Black should try} 13... a4 $14) 14. Nd5 {[%emt 0:08:36]} (14. f4 $142) 14... Na4 $16 {[%emt 0:12:45]} 15. Rab1 {[%emt 0:00:12]} Nb4 {[%emt 0:07:16]} 16. Bd1 {[%emt 0:10:36]} Bxd5 {[%emt 0:06:16]} 17. exd5 {[%emt 0:02:04]} Nc5 {[%emt 0:00:16]} 18. b3 {[%emt 0:00:54]} Qd7 {[%emt 0:04:42]} 19. Nb5 {[%emt 0:01:27] Strongly threatening a3.} Qf5 {[%emt 0:02:18]} 20. Be2 {[%emt 0:01:28][%cal Bd1e2,Be2d3,Bd3c2][%mdl 32]} Qc2 {[%emt 0:05:51]} 21. Qxc2 {[%emt 0:04:27]} Nxc2 {[%emt 0:00:03]} 22. Bf2 {[%emt 0:00:10]} Bh6 {[%emt 0:00:22]} 23. f4 {[%emt 0:12:38]} Ne4 {[%emt 0:02:28] [#]} (23... Nb4 $14) 24. Bd3 $1 {[%emt 0:00:29][%csl LRc2,LRe4]} Nxf2 {[%emt 0:00:22]} 25. Bxc2 {[%emt 0:00:15]} Ng4 {[%emt 0:00:08] Black is weak on the light squares} 26. Rbe1 {[%emt 0:01:31][%cal Oh2h3] Wards off Ne3} a4 {[%emt 0:07:38][%cal Ba5a4,Ba4b3,Bb3b2][%mdl 32]} 27. Rxe7 {[%emt 0:05:34] White is much more active.} Rfe8 {[%emt 0:00:39]} 28. Rxe8+ {[%emt 0:03:36]} Rxe8 {[%emt 0:00:02]} 29. Nxd6 {[%emt 0:00:15]} Re2 {[%emt 0:00:10]} (29... Rb8 {was necessary.} 30. Nb5 (30. bxa4 Ne3 $18) 30... axb3 31. Bxb3 (31. axb3 Ne3 $18) 31... Bf8) 30. Bd1 $18 {[%emt 0:00:21]} Rxa2 {[%emt 0:00:36][%cal Be2a2,Ba2a3,Ba3c3,Bc3c4,Bc4b4,Bb4d4,Bd4d2,Bd2f2][%mdl 32]} 31. Bxg4 {[%emt 0:00:10]} axb3 {[%emt 0:00:12]} 32. Bd1 {[%emt 0:06:04]} ({Don't play} 32. Nxb7 b2 33. Bf3 f5 $18) 32... b2 {[%emt 0:02:49]} 33. Bc2 {[%emt 0:00:06]} (33. Nxb7 $2 {is the wrong capture.} b1=Q (33... b1=R $2 34. d6 $19) 34. Bf3 Qxb7 $19) 33... Ra3 {[%emt 0:01:37]} 34. Nxb7 {[%emt 0:04:13] d6 is the strong threat.} Rc3 {[%emt 0:00:41]} 35. Bb1 {[%emt 0:02:42]} Rxc4 {[%emt 0:01:41]} 36. g3 {[%emt 0:00:03]} Rb4 {[%emt 0:05:06]} 37. Na5 {[%emt 0:00:30]} Rd4 {[%emt 0:12:34] Prevents Rd1.} 38. Nc6 {[%emt 0:00:50]} Rd2 {[%emt 0:00:00]} 39. Ba2 {[%emt 0:00:30]} Bf8 {[%emt 0:00:00]} 40. Rb1 {[%emt 0:00:00]} Bc5+ {[%emt 0:00:00] [#]} 41. Kf1 {[%emt 0:03:14]} (41. Kh1 $1 $18 {is the precise move to win.}) 41... Rf2+ {[%emt 0:00:00]} 42. Ke1 {[%emt 0:00:08][%cal Od5d6] Black must now prevent d6!} Rxh2 {[%emt 0:00:00]} 43. Ne5 {[%emt 0:00:53]} Kg7 {[%emt 0:00:00]} 44. Rd1 {[%emt 0:07:39]} Bf2+ {[%emt 0:05:29]} (44... f5 $16 45. Nd3 Bd6) 45. Ke2 {[%emt 0:00:42]} Bxg3+ {[%emt 0:00:23]} 46. Kf3 {[%emt 0:00:19]} Bh4 {[%emt 0:00:45]} 47. Bb1 {[%emt 0:04:16] Repels Rc2} (47. d6 $18) 47... f5 $2 {[%emt 0:07:51][%mdl 8192] Black cannot hold the game after this.} (47... Rh3+ $16 48. Ke2 Be7) 48. d6 {[%emt 0:02:58]} Rh3+ {[%emt 0:00:05]} 49. Ke2 {[%emt 0:00:06]} Rc3 {[%emt 0:00:19]} 50. Rd2 {[%emt 0:01:15]} Bf6 {[%emt 0:02:07]} 51. Rxb2 {[%emt 0:00:30]} g5 {[%emt 0:00:41]} 52. Rb7+ {[%emt 0:00:23] White mates.} Kg8 {[%emt 0:00:18]} 53. Ba2+ {[%emt 0:05:23]} Kh8 {[%emt 0:00:05]} 54. Rb8+ {[%emt 0:01:49] Weighted Error Value: White=0.15 (very precise) /Black=0.50.  Loses game:     	---       	Black=1      Mistake:       	White=3     	Black=4      Inaccurate:     	White=3     	Black=5      OK:         	White=17    	Black=14     Best:        	White=6     	Black=3      Strong:       	White=1     	---} 1-0

[Event "Vojvodina Open 2024-A 2024"]
[Site "Novi Sad"]
[Date "2024.06.29"]
[Round "7.11"]
[White "Yalcinkaya, Efe"]
[Black "Rupesh Reddy Y"]
[Result "0-1"]
[ECO "B90"]
[WhiteElo "2070"]
[BlackElo "1807"]
[Annotator "NA RC"]
[PlyCount "118"]
[EventDate "2024.06.03"]
[EventType "swiss"]
[EventCountry "SRB"]
[SourceTitle "playchess.com"]
[Source "ChessBase"]
[SourceQuality "1"]
[TimeControl "40/5400+30:900+30"]

1. e4 {[%emt 0:00:02]} c5 {[%emt 0:03:53]} 2. Nf3 {[%emt 0:00:06]} d6 {[%emt 0:00:04]} 3. d4 {[%emt 0:00:07]} cxd4 {[%emt 0:00:04]} 4. Nxd4 {[%emt 0:00:03]} Nf6 {[%emt 0:00:09]} 5. Nc3 {[%emt 0:00:02]} a6 {[%emt 0:00:06]} 6. h3 {[%emt 0:00:03]} h5 {[%emt 0:00:23] B90: Sicilian Najdorf: Unusual White 6th moves, 6 Be3 Ng4 and 6 Be3 e5.} 7. g3 {[%emt 0:02:00]} e5 {[%emt 0:00:48]} 8. Nde2 {[%emt 0:00:06]} Be6 {[%emt 0:00:11]} 9. Bg5 {[%emt 0:02:48]} Be7 {[%emt 0:01:25]} 10. Bxf6 {[%emt 0:02:55]} Bxf6 {[%emt 0:00:09]} 11. Nd5 {[%emt 0:00:15]} Nc6 {[%emt 0:01:17]} 12. Bg2 {[%emt 0:01:59]} Bxd5 {[%emt 0:02:19]} 13. Qxd5 {[%emt 0:02:00]} Rc8 {[%emt 0:01:09]} 14. c3 {[%emt 0:01:52]} Qb6 {[%emt 0:01:26]} 15. b3 {[%emt 0:01:54]} Ne7 {[%emt 0:03:03]} 16. Qd3 {[%emt 0:01:41]} O-O {[%emt 0:00:11]} 17. O-O {[%emt 0:00:59]} Rfd8 {[%emt 0:01:57]} 18. Rfd1 {[%emt 0:07:45]} h4 {[%emt 0:01:23]} 19. g4 {[%emt 0:01:25]} Bg5 {[%emt 0:01:20]} 20. c4 {[%emt 0:06:44]} Qc5 {[%emt 0:05:43]} 21. a4 {[%emt 0:03:18]} Qb6 {[%emt 0:06:25]} 22. a5 {[%emt 0:06:26]} Qc5 {[%emt 0:05:24]} 23. Nc3 {[%emt 0:01:27]} Nc6 {[%emt 0:01:11]} 24. Nd5 {[%emt 0:00:53]} Nd4 {[%emt 0:01:42]} 25. Bf1 {[%emt 0:01:59]} Ne6 {[%emt 0:04:08]} 26. b4 {[%emt 0:01:54]} Qc6 {[%emt 0:01:28]} 27. Rab1 {[%emt 0:04:07]} Qe8 {[%emt 0:03:47]} 28. Qa3 {[%emt 0:06:05]} g6 {[%emt 0:02:07]} 29. b5 {[%emt 0:01:54]} Nc5 {[%emt 0:00:11]} 30. bxa6 {[%emt 0:02:10]} bxa6 {[%emt 0:00:08]} 31. f3 {[%emt 0:04:18]} Qf8 {[%emt 0:12:38]} 32. Kg2 {[%emt 0:07:00]} f5 {[%emt 0:06:55]} 33. Bd3 {[%emt 0:06:17]} fxg4 {[%emt 0:01:37]} 34. fxg4 {[%emt 0:00:10]} Qg7 {[%emt 0:00:53]} 35. Rb6 {[%emt 0:02:20]} Qd7 {[%emt 0:01:14]} 36. Nb4 {[%emt 0:02:58]} Rf8 {[%emt 0:04:07]} ({Better is} 36... Kg7 $17 37. Be2 Nxe4) 37. Nxa6 {[%emt 0:01:46]} Be3 {[%emt 0:01:17]} 38. Rf1 {[%emt 0:06:42]} (38. Nxc5 {is a self mate.} Rf2+ 39. Kh1 Qf7 (39... Rxc5 40. a6 $11)) 38... Bd4 {[%emt 0:06:14]} 39. Nxc5 {[%emt 0:05:33]} Bxc5 {[%emt 0:00:11]} 40. Qa2 {[%emt 0:00:00]} Rxf1 {[%emt 0:00:00]} 41. Bxf1 {[%emt 0:01:00]} Rf8 {[%emt 0:01:15]} 42. Rb3 {[%emt 0:01:51]} Qf7 {[%emt 0:00:51]} 43. Qe2 {[%emt 0:01:06]} Qf2+ {[%emt 0:00:08]} 44. Qxf2 {[%emt 0:00:02]} Rxf2+ {[%emt 0:00:05]} 45. Kh1 {[%emt 0:00:08]} Rxf1+ $11 {[%emt 0:00:05]} 46. Kg2 {[%emt 0:00:03]} Rf2+ {[%emt 0:00:18]} 47. Kh1 {[%emt 0:00:02]} Ra2 {[%emt 0:00:04]} 48. Rb5 {[%emt 0:00:09]} Kf7 {[%emt 0:00:16]} 49. g5 {[%emt 0:00:05]} Ra4 {[%emt 0:00:07]} 50. a6 {[%emt 0:00:06]} Rxa6 {[%emt 0:00:02]} 51. Kg2 {[%emt 0:00:08]} Ra7 {[%emt 0:00:15]} 52. Kh1 {[%emt 0:00:06]} Rc7 {[%emt 0:00:22]} 53. Kg2 {[%emt 0:00:06]} Bd4 {[%emt 0:00:04]} 54. Rb4 {[%emt 0:00:03]} Ke6 {[%emt 0:00:05]} 55. Ra4 {[%emt 0:00:04]} Be3 {[%emt 0:00:04]} 56. Rb4 {[%emt 0:00:06]} Bxg5 {[%emt 0:00:04]} 57. Kf3 {[%emt 0:00:06]} Bd2 {[%emt 0:00:19]} 58. Ra4 {[%emt 0:00:03]} Rf7+ {[%emt 0:00:05]} 59. Ke2 {[%emt 0:00:05]} Bg5 {[%emt 0:00:05]} 0-1